Cogmind - Beta 17.1 @@@ ROGUE MODE // 2026.09.24 @ 02:28:02 Player: Caluan Result: Destroyed by D-53 Grenadier with Mini Grenade Launcher Performance ------------- Evolutions (0) 0 Regions Visited (2) 400 Robots Destroyed (24) 120 Value Destroyed (486) 486 Prototype IDs (0) 0 Alien Tech Used (0) 0 Bonus (0) 0 TOTAL SCORE: 1006 Bonus ------- None Cogmind --------- Core Integrity 0/250 Matter 292/300 Energy 45/100 System Corruption 3% Temperature Cool (0) Movement Rolling (110) Ox2 Location -10/Mines Parts ------- > --- POWER (1) -------- (None) > --- PROPULSION (2) --- Wheel > --- UTILITY (2) ------ Improved Heat Sink Large Storage Unit > --- WEAPON (2) ------- (None) > --- INVENTORY (15) --- Light Treads Light Treads Light Treads Light Treads High-capacity Matter Pod (200) Structural Scanner Seismic Detector Assault Rifle Light Assault Rifle Grenade Launcher Mining Laser Peak State ------------ > --- POWER ------------ (None) > --- PROPULSION ------- Light Treads Wheel > --- UTILITY ---------- Improved Heat Sink Large Storage Unit > --- WEAPON ----------- EM Pulse Gun Medium Laser > --- INVENTORY -------- Light Treads Light Treads Light Treads Light Treads High-capacity Matter Pod Structural Scanner Seismic Detector Assault Rifle Light Assault Rifle Grenade Launcher Mining Laser [Rating: 9] Favorites ----------- Power Ion Engine Engine Ion Engine Propulsion Light Treads Treads Light Treads Wheel Wheel Utility Large Storage Unit Device Improved Heat Sink Storage Large Storage Unit Protection Light Armor Plating Weapon EM Pulse Gun Energy Gun EM Pulse Gun Ballistic Gun Assault Rifle Build | -11 -10 -10 ------- Run | Yrd Mat Min Slots Evolved . | . . . Power . | . . . Propulsion . | . . . Utility . | . . . Weapon . | . . . Parts Attached 14 | 7 4 3 Power 2 | 2 . . Engine 2 | 2 . . Core . | . . . Reactor . | . . . Propulsion 4 | 2 1 1 Treads 3 | 2 1 . Leg . | . . . Wheel 1 | . . 1 Hover . | . . . Flight . | . . . Utility 4 | 1 2 1 Device 1 | . . 1 Storage 2 | 1 1 . Processor . | . . . Hackware . | . . . Protection 1 | . 1 . Artifact . | . . . Weapon 4 | 2 1 1 Energy Gun 3 | 2 1 . Energy Cannon . | . . . Ballistic Gun 1 | . . 1 Ballistic Cannon . | . . . Launcher . | . . . Special Weapon . | . . . Impact Weapon . | . . . Slashing Weapon . | . . . Piercing Weapon . | . . . Special Melee Weapon . | . . . Unidentified Prototypes . | . . . Corrupted Parts 1 | . . 1 System Corruption 1 | . . 1 Parts Lost 7 | . . 7 Power 2 | . . 2 Propulsion 2 | . . 2 Utility 1 | . . 1 Weapon 2 | . . 2 Highest Loss Streak 4 | . . 4 To Critical Strikes . | . . . Average Backups 9 | 1 8 12 Power . | . 1 . Propulsion 3 | . 3 4 Utility 2 | . 1 3 Weapon 2 | . 2 4 Tool/Special . | . . . Unused Backups 10 | . . 10 Power . | . . . Propulsion 4 | . . 4 Utility 3 | . . 3 Weapon 3 | . . 3 Tool/Special . | . . . Average Slot Usage (%) 91 | . 94 84 Engine 11 | . 14 6 Treads 27 | . 28 27 Storage 14 | . 14 14 Protection 7 | . 8 6 Energy Gun 27 | . 28 26 Peak Build Rating 9 | 6 8 9 Average Rating 6 | 4 6 6 On Entrance 4 | . 6 8 Avg Prop Armor Cover (%) . | . . . Naked Turns . | . . . Heaviest Build 32 | 14 32 32 Greatest Support 40 | 40 40 40 Greatest Overweight (x) 2 | . . 2 Average Overweight (x) . | . . . Largest Inventory Capacity 15 | 8 15 15 Average Capacity 13 | 7 12 15 Most Carried 13 | 4 12 13 Average Carried 9 | 1 8 12 Final Capacity 15 | 8 15 15 Final Carried 12 | 2 12 11 Class Distribution -------------------- 100% | Mutant Dominant Class ---------------- Mutant | -10/Materials Mutant | -10/Mines Resources | -11 -10 -10 ----------- Run | Yrd Mat Min Matter Collected 575 | 175 202 198 Remotely . | . . . Salvage Created 579 | 5 329 245 Parts 42 | . 28 14 Haulers Intercepted . | . . . Recyclers Shooed . | . . . Parts Field Recycled . | . . . Retrieved Matter . | . . . Parts Self-Destructed . | . . . Prevented . | . . . Parts Restored . | . . . Kills | -11 -10 -10 ------- Run | Yrd Mat Min Combat Hostiles Destroyed 21 | . 14 7 Guns 13 | . 8 5 AOE 7 | . 6 1 Classes Destroyed 5 | 1 3 1 Worker 1 | 1 . . Tunneler 1 | . . 1 Watcher 1 | . 1 . Swarmer 12 | . 9 3 Grunt 9 | . 5 4 Best Kill Streak 5 | 1 5 3 Combat Bots Only 4 | . 4 3 Max Kills in Single Turn 3 | 1 3 1 Gunslinging . | . . . Exploded 3 | . 3 1 Melee . | . . . Uniques/NPCs Destroyed . | . . . Combat | -11 -10 -10 -------- Run | Yrd Mat Min Hostile Shots Fired 87 | . 35 52 Missed 20 | . 7 13 Hits 67 | . 28 39 Projectile 67 | . 28 39 AOE 6 | . . 6 Critical Strikes 3 | . . 3 Damage Taken 978 | . 324 654 Core 259 | . 31 228 Absorbed by Shields . | . . . Core Remaining (%) 100 | 100 . . Volleys Fired 48 | . 22 26 Largest 2 | . 2 2 Hottest 90 | . 90 90 Shots Fired 91 | . 47 44 Gun 91 | . 47 44 Cannon . | . . . Launcher . | . . . Special . | . . . Kinetic 9 | . . 9 Thermal 40 | . 23 17 Explosive . | . . . Electromagnetic 42 | . 24 18 Robot Hit Streak 7 | . 5 7 Robot Miss Streak 2 | . 2 1 Penetration Max . | . . . Secondary Targets 1 | . 1 . Max Gunslinging Chain 1 | . 1 . Shots Hit Robots 62 | . 28 34 Core Hits 30 | . 18 12 Critical Kills . | . . . Critical Parts Destroyed 1 | . . 1 Critical Strikes 6 | . 1 5 Burn 5 | . 1 4 Destroy 1 | . . 1 Melee Attacks . | . . . Impact . | . . . Slashing . | . . . Piercing . | . . . Sneak Attacks . | . . . Combat Hostiles . | . . . Follow-up Attacks . | . . . Damage Inflicted 1193 | 6 592 595 Guns 759 | . 321 438 Cannons . | . . . Explosions 413 | . 256 157 Melee . | . . . Ramming 21 | 6 15 . Kinetic 103 | . . 103 Thermal 716 | . 380 336 Explosive . | . . . Electromagnetic 353 | . 197 156 Impact . | . . . Slashing . | . . . Piercing . | . . . Highest Corruption 3 | . 2 3 Average Corruption 2 | . 2 2 Corruption Purged . | . . . Corruption Blocked . | . . . Effects 23 | . 12 11 Message Errors 4 | . 2 2 Matter Fused 7 | . 3 4 Heat Flow Errors 2 | . . 2 Energy Discharges 2 | . 1 1 Data Loss (minor) 1 | . 1 . Data Loss (major) 2 | . 1 1 Misfires 4 | . 3 1 Alerts 1 | . 1 . Overload Shots . | . . . Overflow Damage 25 | . . 25 Projectiles . | . . . Explosions 25 | . . 25 Melee . | . . . Knockbacks . | . . . Impact . | . . . Kinetic . | . . . Secondary . | . . . Self-Inflicted Damage 91 | . 91 . Shots 3 | . 3 . Rammed 6 | . 6 . Targets Rammed 7 | 1 6 . Kicked . | . . . Crushed 1 | 1 . . Highest Temperature 307 | . 156 307 Average Temperature 91 | . 63 117 Received Heat Transfer 297 | . 24 273 Siege Activations . | . . . Martial Activations . | . . . Shielding Activations . | . . . Robots Disrupted . | . . . Combat Hostiles . | . . . Robots Corrupted . | . . . Combat Hostiles . | . . . Parts Fried . | . . . Impact Corruptions . | . . . Robots Melted 1 | . . 1 Combat Hostiles 1 | . . 1 Parts Melted 4 | . 2 2 Heat Transferred 1658 | . 694 964 Parts Sabotaged . | . . . Parts Stolen . | . . . Parts Stripped . | . . . Power Chain Reactions 5 | . 3 2 Alert | -11 -10 -10 ------- Run | Yrd Mat Min Maximum Alert Level . | . . . Low Security (%) 100 | 100 100 100 Level 1 . | . . . Level 2 . | . . . Level 3 . | . . . Level 4 . | . . . Level 5 . | . . . High Security . | . . . Max Security . | . . . Peak Influence 196 | . 196 110 Initial 31 | . 3 31 Average 57 | . 68 44 Influence Increases 620 | 5 416 199 Destroy 0b10 Robot/C 420 | . 280 140 Destroy 0b10 Robot/NC 15 | 5 5 5 Destroy Leader 82 | . 52 30 Successful Hack 9 | . 9 . Disable Machine 15 | . 15 . Destroy Structure 19 | . 10 9 Lose Combat Pursuer 60 | . 45 15 Influence Decreases 620 | . 339 281 Entered New Map 53 | . 2 51 Time Decay 537 | . 337 200 Lost Part 30 | . . 30 Squads Dispatched 2 | . 2 . Investigation 2 | . 2 . Extermination . | . . . Reinforcement . | . . . Assault . | . . . Garrison . | . . . Intercept . | . . . Searches Triggered . | . . . Construction Impeded . | . . . Haulers Reinforced . | . . . Active Scanning Responses . | . . . Cargo Convoy Interrupts . | . . . Stealth | -11 -10 -10 --------- Run | Yrd Mat Min Distress Signals 3 | . 3 . Communications Jammed . | . . . Distress Signals . | . . . Times Spotted 42 | . 29 13 Peak Tracking Total 5 | . 5 4 Tactical Retreats 3 | . 2 1 Traps | -11 -10 -10 ------- Run | Yrd Mat Min Traps Triggered 2 | . 2 . Indirectly . | . . . Trap Hack Attempts . | . . . Triggered . | . . . Disarmed . | . . . Reprogrammed . | . . . Reused . | . . . Traps Extracted . | . . . Installed . | . . . Triggered . | . . . Machines | -11 -10 -10 ---------- Run | Yrd Mat Min Machines Disabled 1 | . 1 . Max in Single Turn 1 | . 1 . Machines Repaired . | . . . Machines Dismantled . | . . . Machines Sabotaged . | . . . Overloaded Fab Kills . | . . . Hacking | -11 -10 -10 --------- Run | Yrd Mat Min Machines Accessed 5 | . 5 . Terminals 5 | . 5 . Fabricators . | . . . Repair Stations . | . . . Recycling Units . | . . . Scanalyzers . | . . . Garrison Access . | . . . Total Hacks 11 | . 11 . Successful 7 | . 7 . Failed 4 | . 4 . Catastrophic . | . . . Database Lockouts . | . . . Manual 11 | . 11 . Terminals 11 | . 11 . Fabricators . | . . . Repair Stations . | . . . Recycling Units . | . . . Scanalyzers . | . . . Garrison Access . | . . . Terminal Hacks 2 | . 2 . Robot Analysis 1 | . 1 . Branch Access Points 1 | . 1 . Fabricator Hacks . | . . . Repair Station Hacks . | . . . Recycling Unit Hacks . | . . . Scanalyzer . | . . . Garrison Access Hacks . | . . . Unauthorized Hacks 5 | . 5 . Terminals 5 | . 5 . Botnet 5 | . 5 . Fabricators . | . . . Repair Stations . | . . . Recycling Units . | . . . Scanalyzers . | . . . Garrison Access . | . . . Data Cores Recovered . | . . . Used . | . . . Hacking Detections 3 | . 3 . Full Trace Events 1 | . 1 . Feedback Events . | . . . Feedback Blocked . | . . . Robot Schematics Acquired . | . . . Robots Built . | . . . Authchips . | . . . Time . | . . . Total Robot Build Rating . | . . . Part Schematics Acquired . | . . . Parts Built . | . . . Authchips . | . . . Time . | . . . Total Part Build Rating . | . . . Part Studies Acquired . | . . . Parts Repaired . | . . . Time . | . . . Parts Recycled . | . . . Recycled Matter . | . . . Retrieved Matter . | . . . Retrieved Components . | . . . Parts Scanalyzed . | . . . Part Schematics Acquired . | . . . Parts Damaged . | . . . Bothacking | -11 -10 -10 ------------ Run | Yrd Mat Min Used RIF Installer . | . . . Robots Hacked . | . . . Non-combat . | . . . Combat . | . . . Robot Hacks Applied . | . . . Relay Couplers Released . | . . . Fabnet Peak Effective % . | . . . Robots Rewired . | . . . Allies Hacked . | . . . Hacks Repelled . | . . . Allies | -11 -10 -10 -------- Run | Yrd Mat Min Total Allies . | . . . Largest Group . | . . . Highest-Rated Group . | . . . Highest-Rated Ally . | . . . Total Orders . | . . . Ally Attacks . | . . . Total Damage . | . . . Kills . | . . . Allies Corrupted . | . . . Allies Melted . | . . . Intel | -11 -10 -10 ------- Run | Yrd Mat Min Active Infowar (turns) . | . . . Robot Analysis Total 1 | . 1 . Derelict Logs Recovered 1 | . . 1 Drone Launches . | . . . Drone Recoveries . | . . . Exploration | -11 -10 -10 ------------- Run | Yrd Mat Min Turns Passed 1600 | 100 1016 484 Spaces Moved 856 | 55 555 246 Core 4 | 4 . . Treads 845 | 51 555 239 Legs . | . . . Wheels 7 | . . 7 Hover . | . . . Flight . | . . . Fastest Speed 50 | 50 160 110 Average Speed 159 | 152 160 158 Slowest Speed 160 | 160 160 160 Overloaded Moves . | . . . Propulsion Burnouts . | . . . Robots Hopped . | . . . Potential Cave-ins . | . . . Cave-ins Triggered . | . . . Exploration Rate (%) 52 | 3 87 68 Regions Visited 2 Branch Regions 1 Pre-discovered Areas 1 | . . 1 Known Exits Taken 1 | . 1 . Unknown Exits Taken 1 | 1 . . Scrap Searched 1 | . . 1 Spaces Dug . | . . . Terrain Destroyed 17 | . 8 9 Melee . | . . . Projectile . | . . . AOE 17 | . 8 9 Terrain Rammed . | . . . Walls Destroyed . | . . . Machines Disabled . | . . . Actions | -11 -10 -10 --------- Run | Yrd Mat Min Total 1002 | 70 636 296 Wait 53 | . 36 17 Move 855 | 55 554 246 Hop . | . . . Pick Up 21 | 8 11 2 Fast Attach 2 | . 2 . Attach 9 | 6 . 3 Detach . | . . . Swap 5 | 1 2 2 Drop 3 | . 3 . Fire 48 | . 22 26 Melee . | . . . Ram . | . . . Kick . | . . . Crush 6 | . 6 . Escape Stasis . | . . . Rewire . | . . . Trap . | . . . Miscellaneous . | . . . Route ------- -11/Scrapyard -10/Materials (discovered 5 exits: [*Mat x2] / *Min x2 / [*Sub]) -10/Mines (discovered 1 exit: [*Mat]) History --------- Turn | Location | Event 21 | -11/Scrapyard | Discovered new exit (range 15) 101 | -11/Scrapyard | Entered Materials 297 | -10/Materials | Discovered new exit (range 11) 311 | -10/Materials | Build established: Mutant 454 | -10/Materials | Identified exit to Mines 839 | -10/Materials | Discovered new exit (range 13) 1034 | -10/Materials | Discovered new exit (range 11) 1117 | -10/Materials | Entered Mines 1371 | -10/Mines | Lost 3 parts (2p1u) 1434 | -10/Mines | Learned location of Zion (-6) 1563 | -10/Mines | Discovered new exit (range 6) 1583 | -10/Mines | Assembled infested the area 1597 | -10/Mines | Core integrity fell below 50% 1599 | -10/Mines | Core integrity fell below 20% 1601 | -10/Mines | Destroyed by D-53 Grenadier with Mini Grenade Launcher Last Messages --------------- 01531_ System corrupted: Energy discharge (-39). 01563_ System corrupted: Matter fused (-8). 01563_ EXIT=FOUND 01583_ ALERT: Infestation in the mines, dispatching Demolisher response squad. 01588_ Lgt. Treads destroyed. 01588_ Critical hit (Burn: +37). 01589_ Integrated Corrupted Imp. Heat Sink (+1). 01589_ Complication: Energy sink damages Corrupted Imp. Heat Sink (-15). 01594_ System corrupted: FCS attempts to trigger EM Pulse Gun. 01594_ System corrupted: EM Pulse Gun misfires. 01596_ C-45 Heavy ARC bursts open, deploying its payload. 01596_ D-53 Grenadier unfolds itself. 01596_ EM Pulse Gun destroyed. 01596_ Lgt. Treads destroyed. 01599_ The unstable cave ceiling collapses. 01600_ Med. Laser destroyed. Map ----- +----------------------------------------------------+ | | | | | | | | | | | | | | | | | | | | | | | ????????????????????????????????????? | | ????????????######??????????????????? | | ???????????##" "##?????????????????? | | ???????????#![ !|#?????????????????? | | ???????????#]/ !]??????????????????? | | ?????????#### ???????????????????? | | ????????## //###?????????????????? | | ????????# t #?##########??????? | | ???????## % # ????? | | ???????# Yd ????? | | ????????# d# ########?????????? | | ?????#### ###????????????????? | | ????## # #??????????????????? | | ???## ## ##?????????????????? | | ???# # @ ####??????????????? | | ???# < #??????????????? | | ???## #?????????????? | | ????## ## #?????????????? | | ?????### ### k #?????????????? | | ???????## #?# ##?????????????? | | ????????# ### #??????????????? | | ????????# #??????????????? | | ????????# ### #?????????????? | | ????????# #### ???????????? | | ????????# ### ## ##???????????? | | ????????### #??###?## #????????????? | | ??????????# #???????? ????????????? | | ??????????# #?????????#?????????????? | | ??????????# #???????????????????????? | | ??????????# #???????????????????????? | | ??????????# #???????????????????????? | | ???###????# #???????????????????????? | | ??## #???# #???????????????????????? | | ??# #### #???????????????????????? | | ??# ## #???????????????????????? | | ???# # ###??####???????????????? | | ???# #?## ##???????? #?? | | ???# ### ##??????? ??? | | ???# ### ##?????? ???? | +----------------------------------------------------+ Best States ------------- Heat Dissipation 39 Energy Generation 10 Energy Capacity 250 Matter Stores 300 Matter Capacity 300 Sight Range 16 Terrain Scan Density 10 Armor Coverage 150 Evasion (%) 40 Recoil Reduction 2 Item Schematics ----------------- None Robot Schematics ------------------ None Fabricated ------------ Nothing Repaired ---------- Nothing Studied --------- None Alien Tech Used ----------------- None Achievements -------------- None Challenges ------------ None Game ------ Seed PietyBoltStabilizer Manual? 0 Play Time 00:11:27 Cumulative 333.9 hours Start 2026.09.24 @ 02:14:36 End 2026.09.24 @ 02:28:02 Sessions 1 Manual Loads 0 Difficulty Rogue Special Mode None Game No. 375 Rogue 375 Adventurer 0 Explorer 0 Win Type - Total 4 Types 3/0/1/0/0/0/0/0/0/0 Lore% 58 Gallery% 61 Achievement% 49 Wizard Run 0 Options --------- Layout 1 ASCII 0 Keyboard 0 Movement Numpad Keybinds 0 Fullscreen 2 Font 24/Smallcaps Map View 50x35 Zoom Use 0% Tactical HUD 1 Map Filters NONE Filters NONE Steam 1 RUN: 14d50b80-ce4f-4123-9159-1319fac386bf